fUST/lending_fUST_20251105
["ID","MTS","AMOUNT","RATE_DAILY","PERIOD"]
[393151147,1762288236804,-21993.85163829,0.00019356,2]
[393151148,1762288236817,-445.0788873,0.00019356,2]
[393151150,1762288236829,-282.34546992,0.00019356,2]
[393151152,1762288236840,-395.15453008,0.00019356,2]
[393151155,1762288236856,-857.279338,0.00019356,2]
[393151266,1762288238197,-277.522,0.00019356,2]
[393151268,1762288238274,-2193.4165003,0.00019356,2]
[393151269,1762288238287,-3145.0,0.00019356,2]
[393151271,1762288238312,-20410.35163611,0.00019356,2]
[393151272,1762288238321,-3354.2162502,0.00019356,2]
[393151273,1762288238331,-30359.2797244,0.00019356,2]
[393151274,1762288238341,-6330.801631,0.00019356,2]
[393151275,1762288238350,-661.0,0.00019366,2]
[393151276,1762288238361,-500.0,0.00019366,2]
[393151277,1762288238371,-6089.0,0.00019366,2]
[393151278,1762288238382,-806.0,0.00019366,2]
[393151279,1762288238394,-151.0,0.00019366,2]
[393151281,1762288238404,-151.0,0.00019366,2]
[393151282,1762288238415,-171.34350586,0.00019366,2]
[393151283,1762288238426,-207.62291011,0.00019366,2]
[393151284,1762288238436,-214.40320497,0.00019366,2]
[393151286,1762288238449,-500.0,0.00019366,2]
[393151287,1762288238464,-500.0,0.00019366,2]
[393151288,1762288238477,-151.0,0.00019366,2]
[393151289,1762288238487,-151.0,0.00019366,2]
[393151290,1762288238497,-500.0,0.00019366,2]
[393151291,1762288238508,-500.0,0.00019366,2]
[393151292,1762288238517,-151.0,0.00019366,2]
[393151293,1762288238528,-151.0,0.00019366,2]
[393151294,1762288238538,-500.0,0.00019366,2]
[393151296,1762288238548,-500.0,0.00019366,2]
[393151297,1762288238557,-151.0,0.00019366,2]
[393151298,1762288238567,-151.0,0.00019366,2]
[393151299,1762288238578,-500.0,0.00019367,2]
[393151300,1762288238588,-500.0,0.00019367,2]
[393151301,1762288238598,-500.0,0.00019367,2]
[393151302,1762288238608,-500.0,0.00019367,2]
[393151303,1762288238618,-500.0,0.00019367,2]
[393151304,1762288238628,-500.0,0.00019367,2]
[393151305,1762288238638,-500.0,0.00019367,2]
[393151307,1762288238650,-500.0,0.00019367,2]
[393151308,1762288238663,-500.0,0.00019367,2]
[393151309,1762288238673,-217.688121,0.00019367,2]
[393151310,1762288238684,-217.688121,0.00019367,2]
[393151311,1762288238695,-217.688121,0.00019367,2]
[393151312,1762288238707,-217.688121,0.00019367,2]
[393151313,1762288238717,-1000.0,0.00019367,2]
[393151314,1762288238728,-1000.0,0.00019367,2]
[393151316,1762288238739,-205.71664428,0.00019367,2]
[393151418,1762288240111,-500.0,0.00019366,2]
[393151420,1762288240121,-247.0,0.00019367,2]
[393151422,1762288240135,-303.86500001,0.00019367,2]
[393151453,1762288240732,-243.41835571,0.00019367,2]
[393151454,1762288240739,-254.62164429,0.00019367,2]
[393151455,1762288240748,-745.37835571,0.00019367,2]
[393151456,1762288240755,-1000.0,0.00019367,2]
[393151458,1762288240762,-1000.0,0.00019367,2]
[393151459,1762288240771,-1000.0,0.00019367,2]
[393151460,1762288240780,-1000.0,0.00019367,2]
[393151462,1762288240788,-1000.0,0.00019367,2]
[393151463,1762288240796,-500.0,0.00019368,2]
[393151465,1762288240803,-1000.0,0.00019368,2]
[393151466,1762288240811,-152.02,0.000194,2]
[393151468,1762288240820,-152.02,0.000194,2]
[393151470,1762288240830,-152.02,0.000194,2]
[393151472,1762288240840,-152.02,0.000194,2]
[393151474,1762288240849,-152.02,0.000194,2]
[393151476,1762288240859,-152.02,0.000194,2]
[393151478,1762288240868,-152.02,0.000194,2]
[393151480,1762288240878,-152.02,0.000194,2]
[393151482,1762288240887,-152.02,0.000194,2]
[393151484,1762288240897,-152.02,0.000194,2]
[393151486,1762288240907,-152.02,0.000194,2]
[393151489,1762288240918,-500.0,0.00019402,2]
[393151490,1762288240928,-690.77888223,0.00019402,2]
[393151492,1762288240938,-661.0,0.00019421,2]
[393151494,1762288240948,-500.0,0.00019421,2]
[393151496,1762288240963,-6089.0,0.00019421,2]
[393151498,1762288240972,-806.0,0.00019421,2]
[393151500,1762288240983,-151.0,0.00019421,2]
[393151502,1762288240992,-500.0,0.00019421,2]
[393151504,1762288241002,-500.0,0.00019421,2]
[393151506,1762288241012,-151.0,0.00019421,2]
[393151508,1762288241021,-151.0,0.00019421,2]
[393151510,1762288241031,-500.0,0.00019421,2]
[393151512,1762288241040,-500.0,0.00019421,2]
[393151514,1762288241056,-151.0,0.00019421,2]
[393151516,1762288241066,-151.0,0.00019421,2]
[393151518,1762288241076,-500.0,0.00019421,2]
[393151520,1762288241086,-500.0,0.00019421,2]
[393151522,1762288241095,-151.0,0.00019421,2]
[393151524,1762288241105,-503.26452199,0.00019421,2]
[393151526,1762288241115,-661.0,0.00019476,2]
[393151528,1762288241124,-609.00533219,0.00019476,2]
[393151530,1762288241134,-6089.0,0.00019476,2]
[393151532,1762288241143,-806.0,0.00019476,2]
[393151534,1762288241153,-151.0,0.00019476,2]
[393151536,1762288241162,-500.0,0.00019476,2]
[393151538,1762288241171,-500.0,0.00019476,2]
[393151540,1762288241180,-151.53440013,0.00019476,2]
[393151542,1762288241189,-500.0,0.00019476,2]
[393151544,1762288241199,-302.0,0.00019476,2]
[393151546,1762288241212,-151.0,0.00019476,2]
[393151547,1762288241229,-200.6737605,0.00019476,2]
[393151549,1762288241239,-500.0,0.00019476,2]
[393151551,1762288241248,-500.0,0.00019476,2]
[393151554,1762288241257,-198.0,0.00019476,2]
[393151556,1762288241268,-661.0,0.0001953,2]
[393151558,1762288241279,-717.4650181,0.0001953,2]
[393151755,1762288243107,-250.304,0.0001953,2]
[393151812,1762288243715,-5121.2309819,0.0001953,2]
[393151814,1762288243725,-806.0,0.0001953,2]
[393151816,1762288243735,-154.27553798,0.0001953,2]
[393151818,1762288243745,-500.0,0.0001953,2]
[393151820,1762288243755,-500.0,0.0001953,2]
[393151822,1762288243764,-500.0,0.0001953,2]
[393151824,1762288243773,-151.0,0.0001953,2]
[393151827,1762288243782,-500.0,0.0001953,2]
[393151830,1762288243791,-501.47208722,0.0001953,2]
[393151833,1762288243801,-311.95146306,0.00019584,2]
[393151836,1762288243810,-661.0,0.00019585,2]
[393151839,1762288243819,-6089.0,0.00019585,2]
[393151841,1762288243829,-806.0,0.00019585,2]
[393151843,1762288243839,-500.0,0.00019585,2]
[393151845,1762288243848,-259.069784,0.00019585,2]
[393151848,1762288243858,-500.0,0.00019585,2]
[393151850,1762288243868,-151.0,0.00019585,2]
[393151852,1762288243877,-500.0,0.00019585,2]
[393151855,1762288243887,-299.65542816,0.00019639,2]
[393151857,1762288243896,-342.46334647,0.00019639,2]
[393151858,1762288243905,-661.0,0.0001964,2]
[393151860,1762288243914,-6089.0,0.0001964,2]
[393151862,1762288243923,-806.0,0.0001964,2]
[393151865,1762288243932,-500.0,0.0001964,2]
[393151866,1762288243941,-386.37277212,0.0001964,2]
[393151869,1762288243951,-245.0,0.0001964,2]
[393151880,1762288244049,-500.0,0.0001964,2]
[393151883,1762288244059,-661.0,0.00019695,2]
[393151885,1762288244069,-6089.0,0.00019695,2]
[393151887,1762288244079,-806.0,0.00019695,2]
[393151889,1762288244088,-500.0,0.00019695,2]
[393151891,1762288244097,-500.0,0.00019695,2]
[393151893,1762288244106,-217.688121,0.00019745,2]
[393151895,1762288244116,-217.688121,0.00019745,2]
[393151897,1762288244125,-217.688121,0.00019745,2]
[393151899,1762288244134,-217.688121,0.00019745,2]
[393151901,1762288244143,-300.0,0.00019748,2]
[393151903,1762288244154,-300.0,0.00019748,2]
[393151905,1762288244163,-300.0,0.00019748,2]
[393151907,1762288244172,-300.0,0.00019748,2]
[393151909,1762288244182,-300.0,0.00019748,2]
[393151911,1762288244192,-300.0,0.00019748,2]
[393151913,1762288244201,-300.0,0.00019748,2]
[393151915,1762288244214,-300.0,0.00019748,2]
[393151917,1762288244224,-300.0,0.00019748,2]
[393151919,1762288244233,-300.0,0.00019748,2]
[393151921,1762288244243,-300.0,0.00019748,2]
[393151923,1762288244254,-300.0,0.00019748,2]
[393151925,1762288244263,-300.0,0.00019748,2]
[393151927,1762288244272,-300.0,0.00019748,2]
[393151929,1762288244281,-300.0,0.00019748,2]
[393151931,1762288244290,-600.0,0.00019748,2]
[393151933,1762288244298,-661.0,0.0001975,2]
[393151935,1762288244307,-6089.0,0.0001975,2]
[393151937,1762288244319,-806.0,0.0001975,2]
[393151939,1762288244328,-500.0,0.0001975,2]
[393151941,1762288244337,-500.0,0.0001975,2]
[393151943,1762288244346,-263.52,0.00019752,2]
[393151945,1762288244356,-500.0,0.00019773,2]
[393151947,1762288244365,-500.0,0.00019773,2]
[393151949,1762288244375,-217.688121,0.000198,2]
[393151951,1762288244384,-217.688121,0.000198,2]
[393151953,1762288244396,-217.688121,0.000198,2]
[393151955,1762288244406,-217.688121,0.000198,2]
[393151957,1762288244415,-661.0,0.00019804,2]
[393151959,1762288244424,-6089.0,0.00019804,2]
[393151961,1762288244434,-806.0,0.00019804,2]
[393151963,1762288244444,-500.0,0.00019804,2]
[393151965,1762288244453,-590.22555294,0.00019804,2]
[393151968,1762288244465,-500.0,0.00019856,2]
[393151969,1762288244475,-661.0,0.00019859,2]
[393151972,1762288244484,-6089.0,0.00019859,2]
[393151974,1762288244494,-806.0,0.00019859,2]
[393151976,1762288244503,-500.0,0.00019859,2]
[393151978,1762288244513,-217.688121,0.00019912,2]
[393151980,1762288244522,-217.688121,0.00019912,2]
[393151982,1762288244532,-217.688121,0.00019912,2]
[393151984,1762288244541,-217.688121,0.00019912,2]
[393151986,1762288244550,-661.0,0.00019914,2]
[393151988,1762288244559,-6089.0,0.00019914,2]
[393151990,1762288244568,-806.0,0.00019914,2]
[393151992,1762288244577,-500.0,0.00019914,2]
[393151993,1762288244586,-264.0,0.00019939,2]
[393151996,1762288244595,-661.0,0.00019969,2]
[393151998,1762288244605,-6089.0,0.00019969,2]
[393151999,1762288244615,-806.0,0.00019969,2]
[393152002,1762288244624,-500.0,0.00019969,2]
[393152004,1762288244634,-500.0,0.00019973,2]
[393152006,1762288244643,-500.0,0.00019973,2]
[393152008,1762288244652,-500.0,0.00019973,2]
[393152010,1762288244663,-500.0,0.00019973,2]
[393152011,1762288244672,-217.688121,0.0001999,2]
[393152013,1762288244681,-217.688121,0.0001999,2]
[393152015,1762288244690,-217.688121,0.0001999,2]
[393152017,1762288244700,-217.688112,0.0001999,2]
[393152019,1762288244714,-53038.48911969,0.0001999,2]
[393152021,1762288244724,-661.0,0.00020024,2]
[393152023,1762288244734,-6089.0,0.00020024,2]
[393152025,1762288244744,-806.0,0.00020024,2]
[393152028,1762288244754,-500.0,0.00020024,2]
[393152029,1762288244764,-661.0,0.00020078,2]
[393152032,1762288244774,-6089.0,0.00020078,2]
[393152034,1762288244784,-806.0,0.00020078,2]
[393152035,1762288244794,-500.0,0.00020078,2]
[393152038,1762288244804,-661.0,0.00020133,2]
[393152040,1762288244814,-6089.0,0.00020133,2]
[393152042,1762288244823,-806.0,0.00020133,2]
[393152044,1762288244833,-500.0,0.00020133,2]
[393152046,1762288244842,-11782.36055488,0.00020138,2]
[393152048,1762288244852,-325.0,0.00020142,2]
[393152050,1762288244863,-500.0,0.00020173,2]
[393152052,1762288244872,-433.300092,0.00020187,2]
[393152054,1762288244881,-661.0,0.00020188,2]
[393152056,1762288244890,-6089.0,0.00020188,2]
[393152058,1762288244899,-806.0,0.00020188,2]
[393152060,1762288244909,-500.0,0.00020188,2]
[393152062,1762288244918,-661.0,0.00020243,2]
[393152064,1762288244927,-6089.0,0.00020243,2]
[393152066,1762288244937,-806.0,0.00020243,2]
[393152068,1762288244946,-430.40198025,0.00020243,2]
[393152070,1762288244961,-2478.47229044,0.00020248,2]
[393152072,1762288244970,-661.0,0.00020298,2]
[393152074,1762288244979,-6089.0,0.00020298,2]
[393152076,1762288244989,-806.0,0.00020298,2]
[393152078,1762288244998,-160.0,0.00020328,2]
[393152080,1762288245007,-661.0,0.00020352,2]
[393152082,1762288245016,-6089.0,0.00020352,2]
[393152084,1762288245026,-806.0,0.00020352,2]
[393152086,1762288245035,-661.0,0.00020407,2]
[393152088,1762288245045,-6089.0,0.00020407,2]
[393152090,1762288245054,-806.0,0.00020407,2]
[393152092,1762288245063,-661.0,0.00020462,2]
[393152094,1762288245072,-6089.0,0.00020462,2]
[393152096,1762288245081,-806.0,0.00020462,2]
[393152098,1762288245091,-661.0,0.00020517,2]
[393152100,1762288245100,-6089.0,0.00020517,2]
[393152102,1762288245109,-806.0,0.00020517,2]
[393152104,1762288245118,-500.0,0.00020522,2]
[393152106,1762288245128,-247.49258701,0.00020522,2]
[393152108,1762288245138,-661.0,0.00020571,2]
[393152110,1762288245147,-6089.0,0.00020571,2]
[393152112,1762288245156,-806.0,0.00020571,2]
[393152114,1762288245166,-674.98229528,0.00020626,2]
[393152116,1762288245175,-6089.47835939,0.00020626,2]
[393152118,1762288245184,-607.5154355,0.00020626,2]
[393152301,1762288246438,-210.8307853,0.00019356,2]
[393152303,1762288246448,-201.08703416,0.00020626,2]
[393152305,1762288246461,-229.08218054,0.00020693,2]
[393152412,1762288249141,224.72841112,0.000229,4]
[393152590,1762288257395,1052.25,0.00022605,10]
[393152640,1762288261787,-500.0,0.00019355,2]
[393152641,1762288261811,-500.0,0.00019355,2]
[393152642,1762288261836,-500.0,0.00019355,2]
[393152644,1762288261860,-449.90912133,0.00019355,2]
[393152686,1762288265681,-274.73157093,0.00019354,2]
[393152711,1762288267946,876.88,0.00022605,10]
[393152753,1762288271947,1949.9091213,0.000229,4]
[393152759,1762288272388,788.809412,0.00030137,120]
[393152825,1762288278514,1264.98,0.00022658,10]
[393152841,1762288279895,269.39634705,0.000229,4]
[393152945,1762288289806,720.0,0.00021715,20]
[393152952,1762288290334,1054.15,0.00022583,10]
[393152968,1762288291818,-25.26842907,0.00019354,2]
[393152970,1762288291844,-50.09087867,0.00019355,2]
[393152971,1762288291868,-243.58227326,0.00019355,2]
[393152996,1762288294055,-188.62213729,0.00019355,2]
[393152997,1762288294080,-156.56208986,0.00019355,2]
[393153015,1762288295724,-99.85563688,0.00019355,2]
[393153016,1762288295752,-54.34563542,0.00019355,2]
[393153038,1762288297798,-312.82575952,0.00019355,2]
[393153054,1762288299334,-132.82860506,0.00019355,2]
[393153055,1762288299360,-167.17139494,0.00019355,2]
[393153072,1762288300812,-222.37273088,0.00019355,2]
[393153084,1762288301799,1431.15283997,0.000229,4]
[393153086,1762288302014,982.25,0.00021591,10]
[393153097,1762288302961,-110.45587418,0.00019355,2]
[393153099,1762288302985,-70.45118563,0.00019355,2]
[393153116,1762288304512,-343.2415027,0.00019355,2]
[393153140,1762288306603,-86.30731167,0.00019355,2]
[393153142,1762288306626,-85.35649769,0.00019355,2]
[393153204,1762288312604,818.54,0.00021563,10]
[393153308,1762288322238,-383.65155982,0.00019355,2]
[393153334,1762288324647,930.25,0.00021496,10]
[393153340,1762288325098,918.18510275,0.000229,4]
[393153462,1762288336719,-172.33392246,0.00019354,2]
[393153466,1762288336937,775.21,0.00021563,10]
[393153580,1762288347375,646.0,0.00021563,10]
[393153639,1762288352852,-127.66607754,0.00019354,2]
[393153640,1762288352878,-30.99194249,0.00019355,2]
[393153642,1762288352902,-99.89050446,0.00019355,2]
[393153669,1762288355445,-300.0,0.00019355,2]
[393153710,1762288359218,538.34,0.00021563,10]
[393153844,1762288371377,448.61,0.00021563,10]
[393153993,1762288385225,373.85,0.00021907,10]
[393154131,1762288398407,646.52,0.00021496,10]
[393154227,1762288408048,151.0,0.00022032,7]
[393154230,1762288408204,151.0,0.00022032,7]
[393154246,1762288409734,151.0,0.00022032,7]
[393154255,1762288410444,538.77,0.00021496,10]
[393154321,1762288418988,151.0,0.00022032,7]
[393154343,1762288421051,6968.73671101,0.00019265,2]
[393154356,1762288423306,448.97,0.00021495,10]
[393154430,1762288449368,151.0,0.000229,8]
[393154434,1762288449683,151.0,0.000225,7]
[393154439,1762288450116,151.0,0.000221,8]
[393154608,1762288475346,400.0,0.0003287,120]
[393154758,1762288508403,250.0,0.00037809,30]
[393154766,1762288509271,213.09843176,0.00037809,30]
[393154806,1762288513438,151.0,0.00021505,7]
[393154810,1762288513759,151.0,0.00021506,7]
[393154814,1762288514057,153.241385,0.00022032,7]
[393154816,1762288514139,165.0,0.00021293,120]
[393154846,1762288516919,1957.856,0.00037809,30]
[393154852,1762288518169,224.64341458,0.00019164,2]
[393154891,1762288522935,151.0,0.00021918,7]
[393154895,1762288523285,224.64341457,0.0001921,2]
[393154899,1762288523572,151.0,0.00021918,7]
[393154904,1762288523986,151.0,0.00022032,7]
[393154918,1762288525241,151.0,0.00021918,7]
[393154920,1762288525280,151.0,0.00021918,7]
[393154924,1762288525561,151.0,0.00022032,7]
[393154930,1762288526428,151.0,0.00021918,7]
[393154933,1762288526741,151.0,0.00021918,7]
[393155133,1762288562616,300.0,0.00019254,2]
[393155136,1762288562987,184.82670826,0.00037809,120]
[393155157,1762288566861,160.0,0.00037809,20]
[393155168,1762288568665,151.0,0.00019741,7]
[393155170,1762288569003,151.0,0.00021506,7]
[393155172,1762288569337,151.0,0.00022032,7]
[393155183,1762288570546,151.0,0.00019741,7]
[393155187,1762288570845,151.0,0.00021506,7]
[393155191,1762288571226,151.0,0.00022032,7]
[393155259,1762288591939,3870.84864719,0.00028767,120]
[393155304,1762288600413,151.0,0.00019741,7]
[393155308,1762288600684,151.0,0.00021506,7]
[393155312,1762288600964,151.0,0.00022024,7]
[393155315,1762288601273,151.0,0.00022727,7]
[393155320,1762288601897,151.0,0.00019741,7]
[393155324,1762288602229,151.0,0.00021506,7]
[393155327,1762288602510,151.0,0.00022024,7]
[393155331,1762288602785,151.0,0.00022727,7]
[393155334,1762288603404,151.0,0.00019741,7]
[393155336,1762288603696,151.0,0.00021506,7]
[393155338,1762288603754,1496.73,0.00022,14]
[393155340,1762288604083,160.045667,0.00022024,7]
[393155410,1762288614586,153.0,0.00037809,20]
[393155472,1762288627209,160.0,0.00037809,20]
[393155619,1762288648862,598.900798,0.00019265,7]
[393155621,1762288649101,598.900798,0.00021197,7]
[393155622,1762288649409,598.900798,0.00021506,7]
[393155624,1762288649699,598.900798,0.00022032,7]
[393155627,1762288650317,598.900798,0.00019265,7]
[393155629,1762288650588,598.900798,0.00021197,7]
[393155631,1762288650897,598.900798,0.00021506,7]
[393155634,1762288651177,598.900798,0.00022032,7]
[393155640,1762288651782,598.900798,0.00019265,7]
[393155645,1762288652091,598.900798,0.00021197,7]
[393155649,1762288652448,598.900798,0.00021506,7]
[393155653,1762288652771,598.900798,0.00022032,7]
[393155661,1762288653703,598.900798,0.00019265,7]
[393155665,1762288654011,598.900798,0.00021197,7]
[393155669,1762288654323,598.900798,0.00021506,7]
[393155673,1762288654612,598.900798,0.00022032,7]
[393155734,1762288661345,500.0,0.00030136,120]
[393155737,1762288661590,291.55313932,0.00030273,120]
[393155792,1762288682855,300.0,0.00019254,2]
[393155797,1762288685050,400.0,0.0003287,120]
[393155873,1762288707904,151.0,0.00020548,7]
[393155874,1762288708235,151.0,0.00021156,7]
[393155878,1762288708689,151.0,0.00021506,7]
[393155881,1762288708934,151.0,0.00022032,7]
[393155885,1762288709596,151.0,0.00020548,7]
[393155888,1762288710015,151.0,0.00021156,7]
[393155890,1762288710331,183.68036,0.00021506,7]
[393156152,1762288738814,1330.43,0.00022,14]
[393156195,1762288742622,300.0,0.00019254,2]
[393156437,1762288772942,151.0,0.00019265,7]
[393156440,1762288773254,151.0,0.00021506,7]
[393156444,1762288773537,151.0,0.00021922,7]
[393156447,1762288773843,202.631074,0.00022593,7]
[393156455,1762288774450,300.0,0.0003287,120]
[393156664,1762288806031,677.97,0.00019255,3]
[393156667,1762288806229,186.18355464,0.000378,120]
[393156669,1762288806345,460.20060327,0.000378,30]
[393156671,1762288806460,151.34424707,0.000378,120]
[393156672,1762288806580,250.0,0.000378,120]
[393156691,1762288808689,151.0,0.000378,120]
[393156695,1762288808965,153.89377708,0.000378,120]
[393156697,1762288809071,414.0,0.000378,120]
[393156699,1762288809175,250.0,0.000378,120]
[393156701,1762288809273,151.0,0.000378,120]
[393156703,1762288809453,156.587,0.000378,120]
[393156705,1762288809571,250.0,0.000378,120]
[393156708,1762288809712,429.318,0.000378,120]
[393156710,1762288809828,250.0,0.000378,120]
[393156711,1762288809947,151.0,0.000378,120]
[393156714,1762288810083,156.587,0.000378,120]
[393156716,1762288810200,250.0,0.000378,120]
[393156718,1762288810327,445.202766,0.000378,120]
[393156720,1762288810429,250.0,0.000378,120]
[393156723,1762288810688,250.0,0.000378,120]
[393156726,1762288810869,461.67526834,0.000378,120]
[393156728,1762288810982,250.0,0.000378,120]
[393156732,1762288811299,250.0,0.000378,120]
[393156734,1762288811445,478.75725327,0.000378,120]
[393156737,1762288811661,250.0,0.000378,120]
[393156740,1762288811912,151.0,0.000378,120]
[393156742,1762288812033,250.0,0.000378,120]
[393156745,1762288812152,478.75725327,0.000378,120]
[393156747,1762288812266,250.0,0.000378,120]
[393156750,1762288812542,301.0,0.00028322,120]
[393156752,1762288812665,151.0,0.000378,120]
[393156754,1762288812772,250.0,0.000378,120]
[393156759,1762288813119,300.0,0.000378,120]
[393156761,1762288813227,250.0,0.000378,120]
[393156767,1762288813746,300.0,0.000378,120]
[393156769,1762288813867,250.0,0.000378,120]
[393156771,1762288813980,301.0,0.00029738,120]
[393156773,1762288814267,179.18,0.00019253,2]
[393156775,1762288814514,250.0,0.000378,120]
[393156781,1762288815116,250.0,0.000378,120]
[393156788,1762288815621,301.0,0.00031225,120]
[393156790,1762288815738,250.0,0.000378,120]
[393156796,1762288816361,250.0,0.000378,120]
[393156802,1762288816819,151.0,0.000378,120]
[393156805,1762288816994,301.0,0.00032786,120]
[393156808,1762288817184,338.98,0.00019255,3]
[393156811,1762288817453,156.587,0.000378,120]
[393156815,1762288817954,7854.90703658,0.00019254,2]
[393156817,1762288818080,162.380719,0.000378,120]
[393156823,1762288818712,168.3888056,0.000378,120]
[393156828,1762288819298,174.61919141,0.000378,120]
[393156830,1762288819499,163.40686982,0.000378,120]
[393156835,1762288819918,181.08010149,0.000378,120]
[393156842,1762288820535,187.78006525,0.000378,120]
[393156849,1762288821155,194.72792766,0.000378,120]
[393156855,1762288821770,201.93286099,0.000378,120]
[393156863,1762288822377,209.40437684,0.000378,120]
[393156870,1762288822996,217.15233878,0.000378,120]
[393156876,1762288823647,225.18697532,0.000378,120]
[393156883,1762288824273,233.51889341,0.000378,120]
[393156890,1762288824862,242.15909246,0.000378,120]
[393156896,1762288825481,251.11897888,0.000378,120]
[393156903,1762288826095,260.4103811,0.000378,120]
[393156912,1762288826878,270.0455652,0.000378,120]
[393156918,1762288827390,280.03725112,0.000378,120]
[393156925,1762288828012,290.39862941,0.000378,120]
[393156926,1762288828043,169.49,0.00019255,3]
[393156932,1762288828637,290.39862941,0.000378,120]
[393156966,1762288832071,151.0,0.00019265,7]
[393156970,1762288832435,151.0,0.00021506,7]
[393156975,1762288832750,151.0,0.00022,7]
[393156984,1762288833675,151.0,0.00019265,7]
[393156988,1762288833975,232.068829,0.00021506,7]
[393157035,1762288839042,508.5,0.00019255,3]
[393157329,1762288868861,151.0,0.00019265,7]
[393157332,1762288869133,151.0,0.00021506,7]
[393157335,1762288869420,151.0,0.00022,7]
[393157377,1762288873372,1064.34,0.00022,14]
[393157677,1762288903596,697.122,0.0001888,2]
[393158152,1762288951534,151.0,0.00019265,7]
[393158156,1762288951823,151.0,0.00021,7]
[393158160,1762288952139,152.071494,0.00021506,7]
[393158713,1762289007373,151.0,0.00020736,7]
[393158725,1762289008510,957.91,0.00022,14]
[393159629,1762289102417,300.0,0.00019254,2]
[393159630,1762289102454,1200.0,0.00019254,2]
[393159670,1762289106881,202.78086115,0.00037799,120]
[393159720,1762289111962,151.0,0.00037799,120]
[393159728,1762289112730,156.587,0.00037799,120]
[393159734,1762289113227,162.380719,0.00037799,120]
[393159740,1762289113850,168.3888056,0.00037799,120]
[393159747,1762289114478,174.61919141,0.00037799,120]
[393159753,1762289115131,181.08010149,0.00037799,120]
[393159760,1762289115840,187.78006525,0.00037799,120]
[393159766,1762289116357,194.72792766,0.00037799,120]
[393159773,1762289116956,201.93286099,0.00037799,120]
[393159780,1762289117575,209.40437684,0.00037799,120]
[393159786,1762289118166,217.15233878,0.00037799,120]
[393159793,1762289118812,217.15233878,0.00037799,120]
[393159846,1762289124609,151.0,0.00021918,7]
[393159852,1762289125143,151.0,0.00021918,7]
[393159856,1762289125433,151.0,0.00021918,7]
[393159860,1762289125730,151.0,0.00022495,7]
[393160035,1762289144876,862.12,0.00022,14]
[393160190,1762289162685,300.0,0.00019254,2]
[393160243,1762289169198,151.0,0.00019265,7]
[393160438,1762289191048,151.0,0.00019265,7]
[393160443,1762289191572,151.0,0.00020681,7]
[393160576,1762289222219,300.0,0.00019254,2]